bitfinex/quotes_BTCUSD_20230117
["timestamp","ask_amount","ask_price","bid_price","bid_amount"]
[1673919995007,0.01209173,21053.0,21051.0,0.0771]
[1673919995272,0.01209173,21053.0,21051.0,0.3771]
[1673919995804,0.02609173,21053.0,21051.0,0.3771]
[1673919996335,0.00209173,21053.0,21051.0,0.0771]
[1673919996607,0.01609173,21053.0,21051.0,0.3841]
[1673919996937,0.01609173,21053.0,21051.0,0.0841]
[1673919997115,0.01622306,21053.0,21051.0,0.0841]
[1673919997387,0.01609173,21053.0,21051.0,0.0841]
[1673919997988,0.01609173,21053.0,21051.0,0.3841]
[1673919999609,0.01622306,21053.0,21051.0,0.0841]
[1673920000659,0.01609173,21053.0,21051.0,0.0841]
[1673920000930,0.01609173,21053.0,21051.0,0.859135]
[1673920001697,0.01609173,21053.0,21052.0,0.398302]
[1673920001957,0.01609173,21053.0,21052.0,0.698302]
[1673920002237,0.01609173,21053.0,21052.0,1.173316]
[1673920002984,0.00209173,21053.0,21052.0,1.173316]
[1673920003236,0.01609173,21053.0,21052.0,1.180316]
[1673920004575,0.01609173,21053.0,21052.0,1.173316]
[1673920004576,0.00209173,21053.0,21052.0,1.173316]
[1673920004906,0.01609173,21053.0,21052.0,1.179316]
[1673920005718,0.01609173,21053.0,21052.0,1.102916]
[1673920005976,0.01609173,21053.0,21052.0,1.22718928]
[1673920006777,0.01609173,21053.0,21052.0,1.23568928]
[1673920007056,0.01609173,21053.0,21052.0,1.187816]
[1673920010426,0.01609173,21053.0,21052.0,1.337816]
[1673920010680,0.01182249,21054.0,21053.0,0.0240721]
[1673920010942,0.01182249,21054.0,21053.0,1.8284261]
[1673920011198,0.01182249,21054.0,21053.0,1.6784261]
[1673920011444,0.01182249,21054.0,21053.0,1.5928261]
[1673920013024,0.01182249,21054.0,21053.0,1.5998261]
[1673920013025,0.01282249,21054.0,21053.0,1.5998261]
[1673920013560,0.01282249,21054.0,21053.0,1.3504841]
[1673920013765,0.01182249,21054.0,21053.0,1.6653861]
[1673920014014,0.01382249,21054.0,21053.0,0.8754931]
[1673920014249,0.01382249,21054.0,21053.0,0.4990631]
[1673920014250,0.01182249,21054.0,21053.0,0.4990631]
[1673920014492,0.01282249,21054.0,21053.0,0.5060631]
[1673920014746,0.01282249,21054.0,21053.0,0.8060631]
[1673920014991,0.01282249,21054.0,21053.0,1.1279651]
[1673920015485,0.01282249,21054.0,21053.0,0.8060631]
[1673920015735,0.01282249,21054.0,21053.0,0.7990631]
[1673920015736,0.01182249,21054.0,21053.0,0.7990631]
[1673920015980,0.01382249,21054.0,21053.0,0.8000631]
[1673920016226,0.01382249,21054.0,21053.0,1.1219651]
[1673920018818,1e-08,21054.0,21053.0,1.1219651]
[1673920020782,1e-08,21054.0,21053.0,0.8000631]
[1673920021290,1e-08,21054.0,21053.0,0.0250721]
[1673920021551,1e-08,21054.0,21053.0,0.3250721]
[1673920022052,1e-08,21054.0,21053.0,0.0250721]
[1673920025357,0.06958134,21054.0,21053.0,0.0250721]
[1673920025614,0.46858334,21054.0,21053.0,0.0250721]
[1673920025864,0.54558334,21054.0,21053.0,0.0250721]
[1673920026114,0.69558334,21054.0,21053.0,0.0250721]
[1673920026865,0.69558333,21054.0,21053.0,0.0240721]
[1673920027103,0.72958333,21054.0,21053.0,0.0290721]
[1673920028136,1.20455233,21054.0,21053.0,0.0290721]
[1673920029149,1.68175402,21054.0,21053.0,0.0290721]
[1673920029666,2.46934485,21054.0,21053.0,0.0290721]
[1673920030944,2.25723529,21054.0,21053.0,0.0290721]
[1673920031193,2.46889518,21054.0,21053.0,0.0290721]
[1673920031956,1.82266463,21054.0,21053.0,0.0290721]
[1673920032209,1.67266463,21054.0,21053.0,0.0290721]
[1673920033764,1.88432452,21054.0,21053.0,0.0290721]
[1673920034028,2.10780396,21054.0,21053.0,0.0290721]
[1673920034282,2.46040424,21054.0,21053.0,0.0290721]
[1673920034526,3.41084057,21054.0,21053.0,0.0290721]
[1673920034780,2.17752297,21054.0,21053.0,0.0290721]
[1673920035049,2.45953601,21054.0,21053.0,0.0290721]
[1673920035355,2.57305479,21054.0,21053.0,0.0290721]
[1673920035554,2.60788845,21054.0,21053.0,0.0290721]
[1673920037327,2.43201703,21054.0,21053.0,0.0290721]
[1673920037597,2.31849825,21054.0,21053.0,0.0290721]
[1673920037915,2.14175259,21054.0,21053.0,0.0290721]
[1673920038344,2.49434865,21054.0,21053.0,0.0290721]
[1673920038852,3.44482338,21054.0,21053.0,0.0290721]
[1673920039132,3.6998549,21054.0,21053.0,0.0290721]
[1673920039378,0.02907,21053.0,21045.0,0.00013132]
[1673920039637,0.0766,21048.0,21045.0,0.00013132]
[1673920039901,0.321902,21047.0,21046.0,0.0695141]
[1673920040182,0.47720169,21049.0,21046.0,0.0695141]
[1673920041761,0.47720169,21049.0,21045.0,0.30013132]
[1673920042002,1.33701431,21049.0,21045.0,0.00013132]
[1673920042242,0.0771,21048.0,21045.0,0.00013132]
[1673920042494,0.26782595,21048.0,21045.0,0.00013132]
[1673920042766,0.0771,21048.0,21045.0,0.00013132]
[1673920043095,1.22013564,21048.0,21045.0,0.00013132]
[1673920043269,0.321902,21047.0,21045.0,0.00013132]
[1673920043517,0.00013133,21046.0,21045.0,0.00013132]
[1673920044539,0.09,21046.0,21045.0,0.00013132]
[1673920044790,0.09013133,21046.0,21045.0,0.00013132]
[1673920045053,0.47720169,21047.0,21045.0,0.00013132]
[1673920045308,0.09,21046.0,21045.0,0.00013132]
[1673920045827,0.09013133,21046.0,21045.0,0.00013132]
[1673920046353,0.09,21046.0,21045.0,0.00021143]
[1673920047601,0.00013133,21047.0,21045.0,0.00013132]
[1673920048301,0.55380169,21046.0,21045.0,0.00013132]
[1673920048528,1.35085269,21046.0,21045.0,0.00013132]
[1673920048751,1.40205269,21046.0,21045.0,0.00013132]
[1673920049207,1.40205269,21046.0,21045.0,0.00713132]
[1673920049454,1.40205269,21046.0,21045.0,0.00013132]
[1673920049640,1.41105269,21046.0,21045.0,0.00713132]
[1673920052057,1.56105269,21046.0,21045.0,0.00713132]
[1673920052291,1.85617643,21046.0,21045.0,0.00713132]
[1673920052570,1.56105269,21046.0,21045.0,0.00713132]
[1673920053803,1.63815269,21046.0,21045.0,0.00713132]
[1673920057690,1.48815269,21046.0,21045.0,0.00713132]
[1673920057935,1.41105269,21046.0,21045.0,0.00713132]
[1673920058964,1.33445269,21046.0,21045.0,0.00713132]
[1673920062143,1.75345896,21046.0,21045.0,0.00713132]
[1673920062651,1.41155269,21046.0,21045.0,0.00713132]
[1673920063692,1.56155269,21046.0,21045.0,0.00713132]
[1673920063936,1.41155269,21046.0,21045.0,0.00713132]
[1673920064425,1.40255269,21046.0,21045.0,0.00013132]
[1673920064676,1.48655269,21046.0,21045.0,0.00113132]
[1673920066708,1.83298601,21046.0,21045.0,0.00113132]
[1673920066945,1.68298601,21046.0,21045.0,0.00113132]
[1673920067190,1.48655269,21046.0,21045.0,0.00113132]
[1673920068436,1.48655269,21046.0,21045.0,0.00104243]
[1673920074737,1.40945269,21046.0,21045.0,0.00104243]
[1673920075533,0.93430369,21046.0,21045.0,0.00104243]
[1673920077837,0.1352,21046.0,21045.0,0.07054604]
[1673920078375,0.1352,21046.0,21045.0,0.46924804]
[1673920078627,0.1352,21046.0,21045.0,0.76924804]
[1673920079398,1e-08,21046.0,21045.0,0.76924804]
[1673920079653,1e-08,21046.0,21045.0,0.76920561]
[1673920080672,0.61590565,21050.0,21045.0,0.76820561]
[1673920080936,1.09310734,21050.0,21045.0,0.85204561]
[1673920081197,1.30436532,21050.0,21045.0,0.85204561]
[1673920081454,0.61804034,21050.0,21046.0,0.3]
[1673920081709,0.00013133,21049.0,21046.0,0.3]
[1673920081964,0.00013133,21049.0,21045.0,0.64404561]
[1673920082255,0.19085728,21049.0,21046.0,0.3]
[1673920082488,0.00013133,21049.0,21045.0,0.55204561]
[1673920082741,0.00013133,21049.0,21046.0,0.3]
[1673920082742,0.19085728,21049.0,21046.0,0.3]
[1673920082998,0.00013133,21049.0,21045.0,0.55204561]
[1673920083258,0.19072595,21049.0,21046.0,0.3]
[1673920083518,0.61804034,21050.0,21045.0,0.55204561]
[1673920083773,0.80876629,21050.0,21045.0,0.55204561]
[1673920084030,0.80876629,21050.0,21046.0,0.302]
[1673920084287,0.61804034,21050.0,21046.0,0.302]
[1673920084559,0.00013133,21049.0,21046.0,0.3]
[1673920085625,0.61904034,21050.0,21046.0,0.304]
[1673920085876,0.61904034,21050.0,21046.0,0.30392463]
[1673920086398,0.47720169,21050.0,21045.0,0.55204561]
[1673920086658,0.66792764,21050.0,21046.0,0.002]
[1673920086925,0.47720169,21050.0,21046.0,0.002]
[1673920087172,0.47820169,21050.0,21046.0,0.006]
[1673920087421,0.47720169,21050.0,21046.0,0.3]
[1673920088447,0.47720169,21050.0,21046.0,0.304]
[1673920088448,0.47820169,21050.0,21046.0,0.304]
[1673920088955,0.00013133,21049.0,21046.0,0.304]
[1673920089221,0.00013133,21049.0,21046.0,0.004]
[1673920089495,0.00013133,21049.0,21046.0,0.304]
[1673920090030,0.00013133,21049.0,21045.0,0.55204561]
[1673920090270,0.19085728,21049.0,21045.0,0.55204561]
[1673920090529,0.66805897,21049.0,21046.0,0.002]
[1673920090781,0.47733302,21049.0,21046.0,0.002]
[1673920091053,0.62733302,21049.0,21046.0,0.002]
[1673920091314,0.79910369,21048.0,21045.0,0.073]
[1673920091565,0.321902,21047.0,21044.0,0.00765375]
[1673920091823,0.321902,21046.0,21044.0,0.00765375]
[1673920092085,0.32203333,21045.0,21044.0,0.00765375]
[1673920092346,0.51275928,21045.0,21044.0,0.00765375]
[1673920092601,0.79923502,21045.0,21044.0,0.00765375]
[1673920093132,0.79923502,21045.0,21044.0,0.00496175]
[1673920093400,1.27440702,21045.0,21044.0,0.00496175]
[1673920093669,1.27540702,21045.0,21044.0,0.00896175]
[1673920094008,0.80010369,21045.0,21044.0,0.00896175]
[1673920095265,0.47820169,21045.0,21044.0,0.00896175]
[1673920095517,0.001,21045.0,21044.0,0.00896175]
[1673920096294,0.48577711,21047.0,21044.0,0.00496175]
[1673920096594,0.14083865,21051.0,21045.0,0.321902]
[1673920096815,0.47720169,21050.0,21046.0,0.84131268]
[1673920097082,0.96633037,21051.0,21048.0,0.0763]
[1673920097588,0.00013133,21050.0,21048.0,0.0763]
[1673920097883,0.96633037,21051.0,21048.0,0.0763]
[1673920098359,0.96633037,21051.0,21047.0,0.0771]
[1673920098866,1.15705632,21051.0,21047.0,0.0771]
[1673920099119,1.15805632,21051.0,21048.0,0.007]
[1673920099338,0.96633037,21051.0,21047.0,0.0771]
[1673920099638,0.96733037,21051.0,21047.0,0.0811]
[1673920099905,0.96733037,21051.0,21048.0,0.321902]
[1673920100172,0.96733037,21051.0,21049.0,0.24946]
[1673920100461,0.96733037,21051.0,21047.0,0.556223]
[1673920100700,1.15718765,21051.0,21048.0,0.3]
[1673920100959,0.9664617,21051.0,21048.0,0.3]
[1673920101215,0.9674617,21051.0,21048.0,0.007]
[1673920101782,0.9674617,21051.0,21048.0,0.307]
[1673920102261,0.9664617,21051.0,21047.0,0.552223]
[1673920102521,1.15718765,21051.0,21047.0,0.552223]
[1673920103289,1.15718765,21051.0,21047.0,0.0771]
[1673920103555,1.15718765,21051.0,21047.0,0.1501]
[1673920104424,0.9664617,21051.0,21047.0,0.1501]
[1673920104594,0.96633037,21051.0,21047.0,0.4501]
[1673920106876,0.00013133,21050.0,21047.0,0.4501]
[1673920107122,0.96633037,21051.0,21047.0,0.4501]
[1673920107381,0.96633037,21051.0,21047.0,0.925226]
[1673920107637,0.48912868,21051.0,21047.0,0.852226]
[1673920108130,0.48912868,21051.0,21048.0,0.321902]
[1673920108386,0.48912868,21051.0,21048.0,0.0768]
[1673920108636,0.48912868,21051.0,21048.0,0.3768]
[1673920109434,0.48912868,21051.0,21048.0,0.3788]
[1673920110194,0.48926001,21051.0,21048.0,0.0788]
[1673920110694,0.48912868,21051.0,21048.0,0.0788]
[1673920111206,0.48912868,21051.0,21048.0,0.3788]
[1673920111717,0.48926001,21051.0,21048.0,0.0788]
[1673920112224,0.48912868,21051.0,21048.0,0.0788]
[1673920112445,0.48912868,21051.0,21048.0,0.3788]
[1673920113974,0.00013133,21050.0,21048.0,0.0788]
[1673920114228,0.48912868,21051.0,21048.0,0.0788]
[1673920115013,0.48912868,21051.0,21048.0,0.0768]
[1673920115268,0.48926001,21051.0,21048.0,0.1498]
[1673920115521,0.48926001,21051.0,21048.0,0.0768]
[1673920115746,0.48926001,21051.0,21048.0,0.0788]
[1673920116277,0.62720169,21050.0,21048.0,0.002]
[1673920116527,0.321902,21049.0,21048.0,0.002]
[1673920116788,0.321902,21049.0,21048.0,0.0019319]
[1673920117068,0.321902,21049.0,21045.0,0.552251]
[1673920117321,0.19072595,21049.0,21045.0,0.0771]
[1673920117590,0.00013133,21048.0,21045.0,0.0771]
[1673920118104,0.00013133,21048.0,21044.0,0.62245543]
[1673920118105,0.81805897,21048.0,21044.0,0.00496175]
[1673920118375,0.79910369,21047.0,21045.0,0.073]
[1673920118631,0.321902,21046.0,21044.0,0.00496175]
[1673920118885,0.47720169,21047.0,21044.0,0.00496175]
[1673920119141,0.00013133,21046.0,21044.0,0.00496175]
[1673920119402,0.06958133,21046.0,21045.0,0.007]
[1673920119913,0.39148333,21046.0,21044.0,0.00496175]
[1673920120166,0.471902,21045.0,21044.0,0.00496175]
[1673920120682,0.321902,21045.0,21044.0,0.00496175]
[1673920121015,0.47720169,21046.0,21044.0,0.00496175]
[1673920121195,0.47733302,21046.0,21044.0,0.00496175]
[1673920121462,0.47733302,21046.0,21044.0,0.01196175]
[1673920121716,0.47733302,21046.0,21044.0,0.00496175]
[1673920121979,0.71703267,21046.0,21044.0,0.00696175]
[1673920122250,0.471902,21045.0,21044.0,0.00496175]
[1673920122482,0.471902,21045.0,21044.0,0.00896175]
[1673920123503,0.321902,21045.0,21044.0,0.00896175]
[1673920123746,0.321902,21045.0,21044.0,0.00496175]
[1673920124000,0.95235669,21046.0,21044.0,0.00496175]
[1673920124266,0.47720169,21046.0,21044.0,0.00496175]
[1673920124548,0.001,21045.0,21044.0,0.00896175]
[1673920124850,0.47733302,21046.0,21044.0,0.00496175]
[1673920125100,0.47833302,21046.0,21044.0,0.01196175]
[1673920125346,0.47733302,21046.0,21044.0,0.00496175]
[1673920125596,0.001,21045.0,21044.0,0.00896175]
[1673920125850,0.001,21045.0,21044.0,0.00496175]
[1673920126141,0.001,21045.0,21044.0,0.01196175]
[1673920126409,0.47720169,21046.0,21044.0,0.00496175]
[1673920126664,0.001,21045.0,21044.0,0.07839175]
[1673920126915,0.36298079,21047.0,21044.0,0.07839175]
[1673920127178,0.84018248,21047.0,21044.0,0.00896175]
[1673920127626,0.84018248,21047.0,21044.0,0.00496175]
[1673920128156,0.84018248,21047.0,21044.0,0.01196175]
[1673920129448,0.84031381,21047.0,21044.0,0.01196175]
[1673920130970,0.321902,21046.0,21044.0,0.01196175]
[1673920131185,1.31544281,21047.0,21044.0,0.01196175]
[1673920134838,1.46544281,21047.0,21044.0,0.01196175]
[1673920135171,0.321902,21046.0,21044.0,0.01196175]
[1673920135353,0.321902,21045.0,21044.0,0.01196175]
[1673920135601,1.46544281,21047.0,21044.0,0.01196175]
[1673920136146,0.321902,21046.0,21044.0,0.00496175]
[1673920136429,0.321902,21045.0,21044.0,0.00896175]
[1673920136664,1.31544281,21047.0,21044.0,0.00496175]
[1673920136919,1.31544281,21047.0,21044.0,0.01196175]
[1673920137751,1.66697765,21047.0,21044.0,0.01196175]
[1673920138004,0.321902,21046.0,21044.0,0.01196175]
[1673920138259,1.31544281,21047.0,21044.0,0.00496175]
[1673920138489,1.31544281,21047.0,21044.0,0.00896175]
[1673920138746,1.31544281,21047.0,21044.0,0.00496175]
[1673920139007,0.321902,21046.0,21044.0,0.01196175]
[1673920139259,0.321902,21045.0,21044.0,0.01196175]
[1673920139519,1.31544281,21047.0,21044.0,0.01196175]
[1673920140285,0.84031381,21047.0,21044.0,0.01196175]
[1673920140540,0.84031381,21047.0,21044.0,0.00496175]
[1673920141839,0.84031381,21047.0,21044.0,0.00696175]
[1673920142096,1.61946975,21047.0,21044.0,0.00496175]
[1673920142351,0.321902,21046.0,21044.0,0.01196175]
[1673920142609,1.31544781,21047.0,21044.0,0.01196175]
[1673920146860,0.61592865,21049.0,21044.0,0.01196175]
[1673920147134,0.47720169,21049.0,21044.0,0.56424075]
[1673920147405,0.14083865,21051.0,21046.0,0.0771]
[1673920147668,2.190835,21052.0,21047.0,0.321902]
[1673920147669,0.47720169,21050.0,21047.0,0.321902]
[1673920147921,0.47720169,21050.0,21046.0,1.027379]
[1673920148199,0.47720169,21050.0,21047.0,0.3]
[1673920148427,1.67469635,21052.0,21047.0,0.3]
[1673920148682,0.47720169,21051.0,21047.0,0.3]
[1673920149206,0.47720169,21051.0,21047.0,0.775123]
[1673920150747,0.00013133,21050.0,21047.0,0.775123]
[1673920151046,0.47720169,21051.0,21047.0,0.775123]
[1673920151572,0.47720169,21051.0,21047.0,0.779123]
[1673920151825,0.47720169,21051.0,21047.0,0.852123]
[1673920151826,0.00013133,21050.0,21047.0,0.852123]
[1673920152043,0.00013133,21050.0,21047.0,0.475123]
[1673920152044,0.19072595,21050.0,21047.0,0.475123]
[1673920152350,0.47720169,21051.0,21047.0,0.479123]
[1673920152600,0.61804034,21051.0,21046.0,0.552229]
[1673920152853,0.66792764,21051.0,21046.0,0.552229]
[1673920153390,0.66792764,21051.0,21047.0,0.3]
[1673920153611,1.19966735,21052.0,21047.0,0.775117]
[1673920153896,1.86759499,21052.0,21047.0,0.775117]
[1673920154162,1.86759499,21052.0,21047.0,0.475117]
[1673920154968,1.86759499,21052.0,21047.0,0.47397519]
[1673920155220,1.65633701,21052.0,21047.0,0.47397519]
[1673920155471,1.86759499,21052.0,21047.0,0.48097519]
[1673920155722,1.65633701,21052.0,21047.0,0.48097519]
[1673920158370,1.65633701,21052.0,21048.0,0.0771]
[1673920158672,1.65633701,21052.0,21048.0,0.3771]
[1673920158673,1.32477241,21052.0,21048.0,0.3771]
[1673920158929,0.00013133,21051.0,21048.0,0.0771]
[1673920159716,0.00013133,21051.0,21048.0,0.0841]
[1673920160182,0.00013133,21051.0,21048.0,0.0771]
[1673920160183,1.65633701,21052.0,21048.0,0.0771]
[1673920160458,1.46561106,21052.0,21048.0,0.0841]
[1673920160975,0.89727241,21052.0,21048.0,0.859204]
[1673920161506,0.14083865,21053.0,21048.0,0.852204]
[1673920161775,0.15368442,21055.0,21052.0,9.206e-05]
[1673920162037,0.63088611,21055.0,21052.0,9.206e-05]
[1673920163593,0.01284577,21055.0,21052.0,0.00709206]
[1673920165201,0.00013133,21054.0,21052.0,0.00709206]
[1673920165460,0.01284577,21055.0,21052.0,0.00709206]
[1673920167007,0.01284577,21055.0,21052.0,0.00591729]
[1673920167527,0.01284577,21055.0,21053.0,0.0771]
[1673920167853,0.01284577,21055.0,21054.0,0.321902]
[1673920168081,0.01284577,21055.0,21053.0,0.0771]
[1673920168346,0.01284577,21055.0,21052.0,0.55743029]
[1673920168604,0.01284577,21055.0,21052.0,0.551513]
[1673920168861,0.00013133,21054.0,21053.0,0.032]
[1673920169121,0.01884577,21055.0,21053.0,0.032]
[1673920169393,0.01884577,21055.0,21051.0,0.552135]
[1673920169658,0.20357172,21055.0,21051.0,0.552135]
[1673920169923,0.20957172,21055.0,21052.0,0.032]
[1673920170181,0.01884577,21055.0,21052.0,0.032]
[1673920170441,0.17601012,21055.0,21052.0,0.032]
[1673920170693,0.01884577,21055.0,21052.0,0.032]
[1673920171219,0.01284577,21055.0,21051.0,0.552135]
[1673920171468,0.20357172,21055.0,21051.0,0.552135]
[1673920171794,0.20957172,21055.0,21053.0,0.032]
[1673920171980,0.0189771,21055.0,21053.0,0.032]
[1673920172246,0.0249771,21055.0,21053.0,0.032]
[1673920172501,0.45980562,21054.0,21050.0,0.475045]
[1673920172772,0.45980562,21054.0,21051.0,0.032]
[1673920172773,0.19072595,21053.0,21051.0,0.032]
[1673920173026,1.12773326,21054.0,21049.0,0.475067]
[1673920173294,1.12773326,21054.0,21053.0,0.003]
[1673920173561,0.93700731,21054.0,21053.0,0.003]
[1673920174391,0.45980562,21054.0,21053.0,0.07243]
[1673920174611,0.07884577,21055.0,21053.0,0.003]
[1673920174860,0.01284577,21055.0,21053.0,0.0769]
[1673920175890,0.06,21054.0,21053.0,0.0799]
[1673920176154,0.01284577,21055.0,21053.0,0.0769]
[1673920176423,0.07284577,21055.0,21053.0,0.0799]
[1673920176682,0.01284577,21055.0,21053.0,0.0769]
[1673920177221,0.0129771,21055.0,21053.0,0.0769]
[1673920177474,0.0129771,21055.0,21053.0,0.0799]
[1673920177475,0.07284577,21055.0,21053.0,0.0799]
[1673920177723,0.01284577,21055.0,21053.0,0.0769]
[1673920177979,0.04984577,21055.0,21053.0,0.0799]
[1673920178502,0.04984577,21055.0,21053.0,0.003]
[1673920179830,0.0499771,21055.0,21053.0,0.003]
[1673920180089,0.04984577,21055.0,21053.0,0.003]
[1673920181151,0.06958133,21054.0,21053.0,0.003]
[1673920181670,0.04984577,21055.0,21053.0,0.003]
[1673920182973,0.01284577,21055.0,21051.0,0.852135]
[1673920183241,0.20357172,21055.0,21051.0,0.852135]
[1673920183476,0.20357172,21055.0,21052.0,0.321902]
[1673920183776,0.01284577,21055.0,21051.0,0.852135]
[1673920184035,0.004,21054.0,21053.0,0.031]
[1673920184286,0.004,21054.0,21051.0,0.852135]
[1673920184542,0.004,21054.0,21051.0,0.884135]
[1673920184825,0.004,21054.0,21052.0,0.321902]
[1673920185078,0.004,21054.0,21053.0,0.249341]
[1673920185339,0.01284577,21055.0,21053.0,0.2496244]
[1673920185612,0.006,21054.0,21053.0,0.0002834]
[1673920185899,0.006,21054.0,21051.0,0.507035]
[1673920186196,0.0129771,21055.0,21051.0,0.475035]
[1673920186989,0.20370305,21055.0,21051.0,0.475035]
[1673920187609,0.0129771,21055.0,21051.0,0.475035]
[1673920187610,0.006,21054.0,21052.0,0.032]
[1673920187832,0.0129771,21055.0,21051.0,0.475035]
[1673920188073,0.20970305,21055.0,21051.0,0.507035]
[1673920188519,0.0189771,21055.0,21051.0,0.507035]
[1673920188732,0.47720169,21054.0,21051.0,0.032]
[1673920189838,0.47720169,21054.0,21050.0,0.552156]
[1673920190098,0.67392764,21054.0,21051.0,0.032]
[1673920190318,0.48320169,21054.0,21051.0,0.032]
[1673920192825,0.67392764,21054.0,21051.0,0.032]
[1673920192826,0.48320169,21054.0,21051.0,0.032]
[1673920193084,0.321902,21053.0,21051.0,0.032]
[1673920193343,0.48320169,21054.0,21051.0,0.032]
[1673920193599,0.77415636,21054.0,21051.0,0.032]
[1673920193887,0.76815636,21054.0,21050.0,0.0771]
[1673920194129,0.006,21053.0,21051.0,0.032]
[1673920194908,0.0036,21053.0,21051.0,0.032]
[1673920195188,0.47720169,21054.0,21050.0,0.0771]
[1673920195426,0.61804034,21054.0,21050.0,0.0771]
[1673920195947,0.80876629,21054.0,21049.0,0.475068]
[1673920196194,1.12589072,21054.0,21049.0,0.475068]
[1673920196443,1.65786472,21054.0,21050.0,0.003]
[1673920196711,0.321902,21053.0,21050.0,0.003]
[1673920196985,0.321902,21052.0,21050.0,0.003]
[1673920197254,1.15001434,21054.0,21050.0,0.003]
[1673920197508,1.30427232,21054.0,21048.0,0.99450168]
[1673920197842,0.19072595,21053.0,21048.0,0.99450168]
[1673920198279,0.19072595,21053.0,21049.0,0.003]
[1673920198530,1.36127232,21054.0,21049.0,0.003]
[1673920198794,1.89061481,21054.0,21049.0,0.003]
[1673920199069,0.47720169,21053.0,21049.0,0.003]
[1673920199811,0.47720169,21053.0,21048.0,1.20742578]
[1673920200085,0.66792764,21053.0,21049.0,0.3]
[1673920200395,0.66792764,21053.0,21048.0,1.20742578]
[1673920200396,0.47720169,21053.0,21048.0,1.20742578]
[1673920200632,0.47720169,21053.0,21049.0,0.004]
[1673920200633,0.70392764,21053.0,21049.0,0.004]
[1673920200884,0.65404034,21053.0,21049.0,0.14631068]
[1673920201386,0.65404034,21053.0,21049.0,0.003729]
[1673920201909,0.65404034,21053.0,21049.0,0.14603968]
[1673920202422,0.65404034,21053.0,21049.0,0.003729]
[1673920202683,0.65404034,21053.0,21049.0,0.44603968]
[1673920203211,0.51320169,21053.0,21049.0,0.44603968]
[1673920204742,0.65404034,21053.0,21049.0,0.44603968]
[1673920205028,0.51320169,21053.0,21049.0,0.44603968]
[1673920206349,0.84476629,21053.0,21049.0,0.003729]
[1673920206609,0.00013133,21052.0,21049.0,0.116629]
[1673920207123,0.00013133,21052.0,21049.0,0.003729]
[1673920207124,0.47720169,21051.0,21049.0,0.003729]
[1673920207384,0.321902,21050.0,21049.0,0.003729]
[1673920207664,0.79910369,21050.0,21046.0,0.25521068]
[1673920207914,0.79910369,21050.0,21046.0,0.1129]
[1673920207915,0.47720169,21050.0,21046.0,0.1129]
[1673920208193,0.00013133,21049.0,21046.0,0.1129]
[1673920208439,0.19072595,21049.0,21046.0,0.14231068]
[1673920208706,0.47720169,21050.0,21046.0,0.14231068]
[1673920208984,0.47720169,21050.0,21045.0,0.94329478]
[1673920209257,0.66805897,21049.0,21045.0,0.46813478]
[1673920209526,0.78025897,21049.0,21046.0,0.034]
[1673920209776,0.47720169,21049.0,21046.0,0.034]
[1673920210299,0.47720169,21049.0,21045.0,0.25521068]
[1673920210552,0.66792764,21049.0,21045.0,0.25521068]
[1673920210840,0.00013133,21048.0,21045.0,0.28921068]
[1673920211093,0.00013133,21048.0,21045.0,0.1469]
[1673920211094,0.19085728,21048.0,21045.0,0.1469]
[1673920211366,0.47733302,21048.0,21045.0,0.1469]
[1673920212189,0.47720169,21048.0,21045.0,0.1469]
[1673920212648,0.47720169,21048.0,21045.0,0.4129]
[1673920213167,0.48220169,21048.0,21045.0,0.444212]
[1673920213513,0.47720169,21047.0,21045.0,0.034]
[1673920213695,0.47733302,21047.0,21045.0,0.034]
[1673920214182,0.47733302,21047.0,21044.0,0.41796175]
[1673920214450,0.47733302,21047.0,21044.0,0.11796175]
[1673920214738,0.51133302,21047.0,21045.0,0.003]
[1673920215478,0.47733302,21047.0,21044.0,0.11796175]
[1673920215729,0.47733302,21047.0,21044.0,0.44896175]
[1673920215987,0.48133302,21047.0,21044.0,0.41796175]
[1673920216251,0.51520169,21047.0,21045.0,0.003]
[1673920216504,0.47720169,21047.0,21044.0,0.41796175]
[1673920216755,0.48120169,21047.0,21044.0,0.14896175]
[1673920217014,0.58770036,21047.0,21044.0,0.14896175]
[1673920217533,0.58370036,21047.0,21044.0,0.11796175]
[1673920217798,0.58370036,21047.0,21045.0,0.003]
[1673920218058,0.58370036,21047.0,21044.0,0.11796175]
[1673920218313,0.58770036,21047.0,21044.0,0.03596175]
[1673920218670,0.47720169,21047.0,21044.0,0.00496175]
[1673920218834,0.47720169,21047.0,21045.0,0.003]
[1673920219088,0.51120169,21047.0,21044.0,0.00496175]
[1673920219346,0.51520169,21047.0,21044.0,0.03596175]
[1673920219604,0.47720169,21047.0,21044.0,0.00496175]
[1673920219819,0.53720169,21047.0,21045.0,0.003]
[1673920220113,0.53720169,21047.0,21044.0,0.00496175]
[1673920220606,0.53733302,21047.0,21044.0,0.00496175]
[1673920220880,0.59733302,21047.0,21044.0,0.00796175]
[1673920221942,0.12,21047.0,21046.0,0.1124]
[1673920222217,0.12,21047.0,21046.0,0.434302]
[1673920222739,0.12,21047.0,21046.0,0.1124]
[1673920222997,0.49150635,21048.0,21046.0,0.1124]
[1673920223257,0.06,21047.0,21046.0,0.1154]
[1673920225057,0.06,21047.0,21046.0,0.437302]
[1673920225332,0.49150635,21048.0,21046.0,0.434302]
[1673920225602,0.49163768,21048.0,21047.0,0.249521]
[1673920225867,0.55163768,21048.0,21046.0,0.1154]
[1673920226128,0.49163768,21048.0,21046.0,0.1124]
[1673920226412,0.06,21047.0,21046.0,0.1154]
[1673920226644,0.49163768,21048.0,21046.0,0.1124]
[1673920226875,0.55150635,21048.0,21047.0,0.003]
[1673920227174,0.49150635,21048.0,21046.0,0.1124]
[1673920227436,0.49150635,21048.0,21046.0,0.1154]
[1673920227437,0.55150635,21048.0,21046.0,0.1154]
[1673920227731,0.06,21048.0,21046.0,0.1154]
[1673920227972,0.06,21048.0,21047.0,0.434802]
[1673920228231,1e-08,21048.0,21047.0,1.322829]
[1673920228748,0.00013134,21048.0,21047.0,0.547702]
[1673920229085,1e-08,21048.0,21047.0,0.547702]
[1673920229268,0.44760644,21050.0,21047.0,0.547702]
[1673920229532,0.44760644,21050.0,21048.0,0.1129]
[1673920229757,0.00013133,21049.0,21048.0,0.1129]
[1673920230065,0.44760644,21050.0,21048.0,0.1129]
[1673920230572,0.44760644,21050.0,21048.0,0.1429]
[1673920231344,0.94000863,21053.0,21048.0,0.1429]